[Event "Titled Tuesday Blitz February 21 Late 2023"]
[White "Cori T., Deysi"]
[Black "Radulovic, Bojan"]
[WhiteFideId "3801934"]
[BlackFideId "14508486"]
[WhiteElo "2362"]
[BlackElo "2119"]
[Result "1-0"]
[Round "03"]
[TimeControl "180+2"]
[Date "2023.02.21"]
[WhiteClock "0:01:43"]
[BlackClock "0:01:07"]

1. Nf3 {[%clk 0:03:00]}  d5 {[%clk 0:02:59]} 2. g3 {[%clk 0:03:00]}  Nf6 {[%clk 0:02:59]} 3. Bg2 {[%clk 0:03:00]}  c5 {[%clk 0:02:59]} 4. O-O {[%clk 0:03:01]}  Nc6 {[%clk 0:03:00]} 5. d4 {[%clk 0:03:01]}  cxd4 {[%clk 0:03:00]} 6. Nxd4 {[%clk 0:03:02]}  e6 {[%clk 0:02:59]} 7. c4 {[%clk 0:03:02]}  Be7 {[%clk 0:02:58]} 8. Nc3 {[%clk 0:03:01]}  Nxd4 {[%clk 0:02:56]} 9. Qxd4 {[%clk 0:03:00]}  dxc4 {[%clk 0:02:56]} 10. Qxc4 {[%clk 0:02:59]}  O-O {[%clk 0:02:56]} 11. Rd1 {[%clk 0:02:59]}  Qa5 {[%clk 0:02:54]} 12. Qb5 {[%clk 0:02:57]}  Qxb5 {[%clk 0:02:53]} 13. Nxb5 {[%clk 0:02:56]}  Bd7 {[%clk 0:02:50]} 14. Nd4 {[%clk 0:02:54]}  Nd5 {[%clk 0:02:43]} 15. e4 {[%clk 0:02:52]}  Nb4 {[%clk 0:02:38]} 16. a3 {[%clk 0:02:49]}  Nc6 {[%clk 0:02:34]} 17. Nb5 {[%clk 0:02:48]}  Rfd8 {[%clk 0:02:34]} 18. Bf4 {[%clk 0:02:46]}  a6 {[%clk 0:02:33]} 19. Nd6 {[%clk 0:02:43]}  e5 {[%clk 0:02:23]} 20. Be3 {[%clk 0:02:39]}  Rab8 {[%clk 0:02:16]} 21. Bb6 {[%clk 0:02:37]}  Rf8 {[%clk 0:02:08]} 22. Bc7 {[%clk 0:02:37]}  Ra8 {[%clk 0:02:03]} 23. Nxb7 {[%clk 0:02:36]}  Be6 {[%clk 0:02:02]} 24. Bd6 {[%clk 0:02:28]}  Bxd6 {[%clk 0:01:51]} 25. Nxd6 {[%clk 0:02:29]}  Rab8 {[%clk 0:01:48]} 26. b4 {[%clk 0:02:27]}  a5 {[%clk 0:01:47]} 27. b5 {[%clk 0:02:23]}  Nd4 {[%clk 0:01:47]} 28. a4 {[%clk 0:02:24]}  Rfd8 {[%clk 0:01:41]} 29. Nf5 {[%clk 0:02:19]}  Nxf5 {[%clk 0:01:40]} 30. exf5 {[%clk 0:02:19]}  Bxf5 {[%clk 0:01:40]} 31. Bc6 {[%clk 0:02:17]}  Rxd1+ {[%clk 0:01:38]} 32. Rxd1 {[%clk 0:02:17]}  Bc2 {[%clk 0:01:38]} 33. Ra1 {[%clk 0:02:17]}  Kf8 {[%clk 0:01:35]} 34. Ra2 {[%clk 0:02:16]}  Bb3 {[%clk 0:01:34]} 35. Ra3 {[%clk 0:02:16]}  Bc2 {[%clk 0:01:35]} 36. f3 {[%clk 0:02:16]}  Ke7 {[%clk 0:01:34]} 37. Kf2 {[%clk 0:02:16]}  Kd6 {[%clk 0:01:33]} 38. Ke3 {[%clk 0:02:16]}  Kc7 {[%clk 0:01:21]} 39. Kd2 {[%clk 0:02:16]}  Bf5 {[%clk 0:01:20]} 40. Rc3 {[%clk 0:02:15]}  Rd8+ {[%clk 0:01:17]} 41. Ke3 {[%clk 0:02:14]}  Kb6 {[%clk 0:01:17]} 42. g4 {[%clk 0:02:09]}  Be6 {[%clk 0:01:13]} 43. Be4 {[%clk 0:02:08]}  Rd6 {[%clk 0:01:10]} 44. Bxh7 {[%clk 0:02:05]}  g6 {[%clk 0:01:10]} 45. h4 {[%clk 0:02:04]}  Bd7 {[%clk 0:01:09]} 46. h5 {[%clk 0:02:03]}  gxh5 {[%clk 0:01:09]} 47. gxh5 {[%clk 0:02:02]}  Rh6 {[%clk 0:01:08]} 48. Bg8 {[%clk 0:02:02]}  Rxh5 {[%clk 0:01:07]} 49. Bxf7 {[%clk 0:02:02]}  Rh4 {[%clk 0:01:08]} 50. Rc4 {[%clk 0:01:55]}  Rxc4 {[%clk 0:01:05]} 51. Bxc4 {[%clk 0:01:55]}  Kc5 {[%clk 0:01:06]} 52. Bb3 {[%clk 0:01:55]}  Kb4 {[%clk 0:01:06]} 53. Bd1 {[%clk 0:01:55]}  Bf5 {[%clk 0:01:06]} 54. b6 {[%clk 0:01:51]}  Bc8 {[%clk 0:01:06]} 55. Ke4 {[%clk 0:01:50]}  Kc5 {[%clk 0:01:07]} 56. Kxe5 {[%clk 0:01:50]}  Kxb6 {[%clk 0:01:07]} 57. Kd6 {[%clk 0:01:51]}  Bb7 {[%clk 0:01:06]} 58. f4 {[%clk 0:01:51]}  Be4 {[%clk 0:01:06]} 59. Bb3 {[%clk 0:01:50]}  Bd3 {[%clk 0:01:06]} 60. Be6 {[%clk 0:01:46]}  Bc2 {[%clk 0:01:06]} 61. Bd7 {[%clk 0:01:46]}  Bd3 {[%clk 0:01:05]} 62. f5 {[%clk 0:01:46]}  Kb7 {[%clk 0:01:05]} 63. f6 {[%clk 0:01:45]}  Bg6 {[%clk 0:01:06]} 64. Be6 {[%clk 0:01:44]}  Kb6 {[%clk 0:01:06]} 65. f7 {[%clk 0:01:44]}  Bxf7 {[%clk 0:01:06]} 66. Bxf7 {[%clk 0:01:43]}  Ka6 {[%clk 0:01:07]} 1-0


[Site "https://www.chess.com"]

[Event "Titled Tuesday Blitz February 21 Late 2023"]
[White "Petrovic, Aleksa"]
[Black "Arvelo Leo, Gian Carlo"]
[WhiteFideId "967629"]
[BlackFideId "6402720"]
[WhiteElo "2332"]
[BlackElo "2075"]
[Result "1/2-1/2"]
[Round "03"]
[TimeControl "180+2"]
[Date "2023.02.21"]
[WhiteClock "0:00:10"]
[BlackClock "0:00:33"]

1. d4 {[%clk 0:02:57]}  Nf6 {[%clk 0:02:59]} 2. c4 {[%clk 0:02:56]}  g6 {[%clk 0:02:59]} 3. f3 {[%clk 0:02:55]}  Bg7 {[%clk 0:02:59]} 4. e4 {[%clk 0:02:55]}  d6 {[%clk 0:02:59]} 5. Nc3 {[%clk 0:02:55]}  O-O {[%clk 0:02:59]} 6. Nge2 {[%clk 0:02:55]}  c5 {[%clk 0:02:58]} 7. d5 {[%clk 0:02:56]}  e6 {[%clk 0:02:55]} 8. Ng3 {[%clk 0:02:55]}  exd5 {[%clk 0:02:53]} 9. cxd5 {[%clk 0:02:55]}  Nbd7 {[%clk 0:02:52]} 10. Be2 {[%clk 0:02:54]}  h5 {[%clk 0:02:47]} 11. Bg5 {[%clk 0:02:53]}  Qb6 {[%clk 0:02:47]} 12. Qd2 {[%clk 0:02:53]}  Nh7 {[%clk 0:02:38]} 13. Bf4 {[%clk 0:02:42]}  h4 {[%clk 0:02:30]} 14. Nf1 {[%clk 0:02:42]}  Ne5 {[%clk 0:02:17]} 15. Ne3 {[%clk 0:02:33]}  g5 {[%clk 0:02:11]} 16. Bxe5 {[%clk 0:02:31]}  Bxe5 {[%clk 0:02:11]} 17. Nc4 {[%clk 0:02:32]}  Qd8 {[%clk 0:01:54]} 18. Nxe5 {[%clk 0:02:29]}  dxe5 {[%clk 0:01:55]} 19. O-O-O {[%clk 0:02:10]}  a6 {[%clk 0:01:49]} 20. g3 {[%clk 0:02:09]}  h3 {[%clk 0:01:48]} 21. f4 {[%clk 0:02:08]}  Qd6 {[%clk 0:01:31]} 22. fxg5 {[%clk 0:01:55]}  b5 {[%clk 0:01:30]} 23. Rdf1 {[%clk 0:01:50]}  b4 {[%clk 0:01:28]} 24. Nd1 {[%clk 0:01:49]}  c4 {[%clk 0:01:28]} 25. Bxc4 {[%clk 0:01:41]}  Bd7 {[%clk 0:01:27]} 26. Kb1 {[%clk 0:01:38]}  Rfc8 {[%clk 0:01:24]} 27. Bd3 {[%clk 0:01:32]}  Bb5 {[%clk 0:01:23]} 28. Ne3 {[%clk 0:01:29]}  b3 {[%clk 0:01:09]} 29. a3 {[%clk 0:01:19]}  Qg6 {[%clk 0:01:04]} 30. Nf5 {[%clk 0:01:11]}  Qxg5 {[%clk 0:00:57]} 31. Qxg5+ {[%clk 0:00:54]}  Nxg5 {[%clk 0:00:57]} 32. Bxb5 {[%clk 0:00:50]}  axb5 {[%clk 0:00:49]} 33. Ne7+ {[%clk 0:00:49]}  Kg7 {[%clk 0:00:50]} 34. Nxc8 {[%clk 0:00:47]}  Rxc8 {[%clk 0:00:51]} 35. Rc1 {[%clk 0:00:40]}  Rb8 {[%clk 0:00:48]} 36. Rhe1 {[%clk 0:00:38]}  b4 {[%clk 0:00:48]} 37. a4 {[%clk 0:00:36]}  Nf3 {[%clk 0:00:48]} 38. Re2 {[%clk 0:00:33]}  Nd4 {[%clk 0:00:47]} 39. Re3 {[%clk 0:00:29]}  Ra8 {[%clk 0:00:48]} 40. g4 {[%clk 0:00:20]}  Rxa4 {[%clk 0:00:47]} 41. Rxh3 {[%clk 0:00:21]}  Kg6 {[%clk 0:00:40]} 42. Rd3 {[%clk 0:00:20]}  Ra6 {[%clk 0:00:40]} 43. Rcd1 {[%clk 0:00:20]}  Kg5 {[%clk 0:00:39]} 44. Rxd4 {[%clk 0:00:20]}  exd4 {[%clk 0:00:39]} 45. Rxd4 {[%clk 0:00:21]}  Kxg4 {[%clk 0:00:40]} 46. d6 {[%clk 0:00:21]}  Ra8 {[%clk 0:00:39]} 47. Rxb4 {[%clk 0:00:21]}  Rd8 {[%clk 0:00:39]} 48. Rd4 {[%clk 0:00:18]}  Kf4 {[%clk 0:00:39]} 49. Kc1 {[%clk 0:00:18]}  Ke5 {[%clk 0:00:38]} 50. Rd3 {[%clk 0:00:17]}  Kxe4 {[%clk 0:00:38]} 51. Rxb3 {[%clk 0:00:16]}  Rxd6 {[%clk 0:00:39]} 52. Rh3 {[%clk 0:00:15]}  f5 {[%clk 0:00:37]} 53. Kc2 {[%clk 0:00:14]}  f4 {[%clk 0:00:37]} 54. b4 {[%clk 0:00:12]}  f3 {[%clk 0:00:37]} 55. Rh4+ {[%clk 0:00:12]}  Ke3 {[%clk 0:00:37]} 56. Rh7 {[%clk 0:00:11]}  Rf6 {[%clk 0:00:37]} 57. Re7+ {[%clk 0:00:11]}  Kf4 {[%clk 0:00:36]} 58. Re1 {[%clk 0:00:11]}  f2 {[%clk 0:00:36]} 59. Rf1 {[%clk 0:00:11]}  Ke3 {[%clk 0:00:37]} 60. Kc3 {[%clk 0:00:11]}  Ke2 {[%clk 0:00:37]} 61. Rxf2+ {[%clk 0:00:11]}  Kxf2 {[%clk 0:00:37]} 62. Kc4 {[%clk 0:00:10]}  Ke3 {[%clk 0:00:37]} 63. Kc5 {[%clk 0:00:11]}  Kd3 {[%clk 0:00:36]} 64. b5 {[%clk 0:00:11]}  Ke4 {[%clk 0:00:33]} 65. b6 {[%clk 0:00:10]}  Rf8 {[%clk 0:00:32]} 66. b7 {[%clk 0:00:10]}  Kf4 {[%clk 0:00:32]} 67. Kc6 {[%clk 0:00:10]}  Kg4 {[%clk 0:00:32]} 68. Kc7 {[%clk 0:00:10]}  Kh3 {[%clk 0:00:32]} 69. b8=R {[%clk 0:00:09]}  Rxb8 {[%clk 0:00:32]} 70. Kxb8 {[%clk 0:00:10]}  Kxh2 {[%clk 0:00:33]} 1/2-1/2


[Site "https://www.chess.com"]

[Event "Titled Tuesday Blitz February 21 Late 2023"]
[White "Comas Fabrego, Lluis"]
[Black "Womacka, Mathias"]
[WhiteFideId "2200325"]
[BlackFideId "4611390"]
[WhiteElo "2424"]
[BlackElo "2396"]
[Result "0-1"]
[Round "03"]
[TimeControl "180+2"]
[Date "2023.02.21"]
[WhiteClock "0:00:11"]
[BlackClock "0:00:41"]

1. Nf3 {[%clk 0:03:00]}  c5 {[%clk 0:02:59]} 2. c4 {[%clk 0:02:59]}  Nf6 {[%clk 0:02:58]} 3. Nc3 {[%clk 0:02:58]}  e6 {[%clk 0:02:58]} 4. d4 {[%clk 0:02:58]}  cxd4 {[%clk 0:02:57]} 5. Nxd4 {[%clk 0:02:59]}  Bb4 {[%clk 0:02:57]} 6. g3 {[%clk 0:02:45]}  O-O {[%clk 0:02:55]} 7. Bg2 {[%clk 0:02:45]}  d5 {[%clk 0:02:55]} 8. O-O {[%clk 0:02:28]}  dxc4 {[%clk 0:02:55]} 9. a3 {[%clk 0:01:49]}  Bxc3 {[%clk 0:02:47]} 10. bxc3 {[%clk 0:01:48]}  e5 {[%clk 0:02:47]} 11. Nb5 {[%clk 0:01:47]}  Qb6 {[%clk 0:02:40]} 12. a4 {[%clk 0:01:42]}  Rd8 {[%clk 0:02:39]} 13. Qc2 {[%clk 0:01:41]}  Nc6 {[%clk 0:02:32]} 14. Be3 {[%clk 0:01:40]}  Qa5 {[%clk 0:02:32]} 15. Bg5 {[%clk 0:01:32]}  Be6 {[%clk 0:02:11]} 16. Bxf6 {[%clk 0:01:26]}  gxf6 {[%clk 0:02:12]} 17. Be4 {[%clk 0:01:25]}  a6 {[%clk 0:01:53]} 18. Bxh7+ {[%clk 0:00:58]}  Kg7 {[%clk 0:01:53]} 19. Na3 {[%clk 0:00:58]}  Rh8 {[%clk 0:01:34]} 20. Be4 {[%clk 0:00:53]}  Bd5 {[%clk 0:01:18]} 21. Rfd1 {[%clk 0:00:44]}  Bxe4 {[%clk 0:00:59]} 22. Qxe4 {[%clk 0:00:42]}  Qxc3 {[%clk 0:00:59]} 23. Qg4+ {[%clk 0:00:26]}  Kf8 {[%clk 0:00:56]} 24. Nxc4 {[%clk 0:00:15]}  Nd4 {[%clk 0:00:56]} 25. e3 {[%clk 0:00:11]}  f5 {[%clk 0:00:41]} 0-1


[Site "https://www.chess.com"]

[Event "Titled Tuesday Blitz February 21 Late 2023"]
[White "Seletsky, Grigory"]
[Black "Simonovic, Miroslav"]
[WhiteFideId "14112191"]
[BlackFideId "919152"]
[WhiteElo "2259"]
[BlackElo "2082"]
[Result "1-0"]
[Round "03"]
[TimeControl "180+2"]
[Date "2023.02.21"]
[WhiteClock "0:00:10"]
[BlackClock "0:00:02"]

1. e4 {[%clk 0:02:10]}  c5 {[%clk 0:02:58]} 2. Nc3 {[%clk 0:02:09]}  Nc6 {[%clk 0:02:58]} 3. d3 {[%clk 0:02:10]}  g6 {[%clk 0:02:58]} 4. Be3 {[%clk 0:02:10]}  d6 {[%clk 0:02:57]} 5. d4 {[%clk 0:02:11]}  cxd4 {[%clk 0:02:56]} 6. Bxd4 {[%clk 0:02:11]}  Nxd4 {[%clk 0:02:53]} 7. Qxd4 {[%clk 0:02:12]}  Nf6 {[%clk 0:02:53]} 8. e5 {[%clk 0:02:12]}  dxe5 {[%clk 0:02:53]} 9. Bb5+ {[%clk 0:02:12]}  Bd7 {[%clk 0:02:53]} 10. Qxe5 {[%clk 0:02:13]}  Bg7 {[%clk 0:02:42]} 11. O-O-O {[%clk 0:02:11]}  O-O {[%clk 0:02:42]} 12. Bxd7 {[%clk 0:02:10]}  Nxd7 {[%clk 0:02:41]} 13. Qb5 {[%clk 0:02:11]}  Qb6 {[%clk 0:01:36]} 14. Rxd7 {[%clk 0:02:00]}  Qxf2 {[%clk 0:01:13]} 15. Nge2 {[%clk 0:01:58]}  Qxg2 {[%clk 0:00:55]} 16. Qxb7 {[%clk 0:01:43]}  Qf2 {[%clk 0:00:48]} 17. Rxe7 {[%clk 0:01:33]}  Rae8 {[%clk 0:00:43]} 18. Rd1 {[%clk 0:01:24]}  Qxh2 {[%clk 0:00:28]} 19. Qxa7 {[%clk 0:01:16]}  Bf6 {[%clk 0:00:19]} 20. Rxe8 {[%clk 0:01:06]}  Rxe8 {[%clk 0:00:20]} 21. Re1 {[%clk 0:00:45]}  Qh6+ {[%clk 0:00:14]} 22. Kb1 {[%clk 0:00:43]}  Bxc3 {[%clk 0:00:15]} 23. bxc3 {[%clk 0:00:41]}  Qd2 {[%clk 0:00:14]} 24. Qg1 {[%clk 0:00:34]}  Rxe2 {[%clk 0:00:13]} 25. Rxe2 {[%clk 0:00:34]}  Qxe2 {[%clk 0:00:14]} 26. a4 {[%clk 0:00:30]}  h5 {[%clk 0:00:13]} 27. Qb6 {[%clk 0:00:26]}  Kg7 {[%clk 0:00:08]} 28. a5 {[%clk 0:00:26]}  h4 {[%clk 0:00:05]} 29. a6 {[%clk 0:00:26]}  h3 {[%clk 0:00:05]} 30. a7 {[%clk 0:00:26]}  Qf1+ {[%clk 0:00:04]} 31. Kb2 {[%clk 0:00:25]}  h2 {[%clk 0:00:05]} 32. a8=Q {[%clk 0:00:23]}  h1=Q {[%clk 0:00:05]} 33. Qd4+ {[%clk 0:00:22]}  f6 {[%clk 0:00:04]} 34. Qd7+ {[%clk 0:00:18]}  Kh6 {[%clk 0:00:04]} 35. Qh8+ {[%clk 0:00:18]}  Kg5 {[%clk 0:00:05]} 36. Qd2+ {[%clk 0:00:15]}  Kf5 {[%clk 0:00:03]} 37. Qc8+ {[%clk 0:00:12]}  Ke5 {[%clk 0:00:03]} 38. Qc5+ {[%clk 0:00:10]}  Ke6 {[%clk 0:00:03]} 39. Qdd6+ {[%clk 0:00:09]}  Kf7 {[%clk 0:00:02]} 40. Qcc7+ {[%clk 0:00:09]}  Kg8 {[%clk 0:00:02]} 41. Qdd8# {[%clk 0:00:10]} 1-0


[Site "https://www.chess.com"]

[Event "Titled Tuesday Blitz February 21 Late 2023"]
[White "Hernandez Jimenez, Alexander Andres"]
[Black "Gatterer, Florian"]
[WhiteFideId "3900452"]
[BlackFideId "811688"]
[WhiteElo "2134"]
[BlackElo "2170"]
[Result "1/2-1/2"]
[Round "03"]
[TimeControl "180+2"]
[Date "2023.02.21"]
[WhiteClock "0:02:23"]
[BlackClock "0:02:35"]

1. e4 {[%clk 0:03:00]}  c5 {[%clk 0:02:59]} 2. Nf3 {[%clk 0:03:00]}  e6 {[%clk 0:02:59]} 3. d4 {[%clk 0:03:00]}  cxd4 {[%clk 0:03:00]} 4. Nxd4 {[%clk 0:03:00]}  Nf6 {[%clk 0:03:00]} 5. Nc3 {[%clk 0:03:00]}  Nc6 {[%clk 0:03:00]} 6. Ndb5 {[%clk 0:02:55]}  Bc5 {[%clk 0:03:00]} 7. Nd6+ {[%clk 0:02:47]}  Ke7 {[%clk 0:02:59]} 8. Nxc8+ {[%clk 0:02:46]}  Rxc8 {[%clk 0:02:58]} 9. Be2 {[%clk 0:02:46]}  Re8 {[%clk 0:02:53]} 10. O-O {[%clk 0:02:46]}  Kf8 {[%clk 0:02:52]} 11. a3 {[%clk 0:02:45]}  d5 {[%clk 0:02:47]} 12. exd5 {[%clk 0:02:44]}  Nxd5 {[%clk 0:02:48]} 13. Ne4 {[%clk 0:02:42]}  Be7 {[%clk 0:02:46]} 14. c4 {[%clk 0:02:40]}  Nf6 {[%clk 0:02:44]} 15. Bf3 {[%clk 0:02:24]}  Qxd1 {[%clk 0:02:35]} 16. Rxd1 {[%clk 0:02:23]}  Red8 {[%clk 0:02:35]} 1/2-1/2


[Site "https://www.chess.com"]

[Event "Titled Tuesday Blitz February 21 Late 2023"]
[White "Curtis, John"]
[Black "Meunier-Pion, Jean"]
[WhiteFideId "3200256"]
[BlackFideId "20685327"]
[WhiteElo "2292"]
[BlackElo "2215"]
[Result "0-1"]
[Round "03"]
[TimeControl "180+2"]
[Date "2023.02.21"]
[WhiteClock "0:02:54"]
[BlackClock "0:03:00"]

1. e4 {[%clk 0:02:58]}  c5 {[%clk 0:03:00]} 2. Nf3 {[%clk 0:02:58]}  d6 {[%clk 0:03:00]} 3. d4 {[%clk 0:02:57]}  cxd4 {[%clk 0:03:00]} 4. Nxd4 {[%clk 0:02:58]}  Nf6 {[%clk 0:03:01]} 5. Nc3 {[%clk 0:02:58]}  a6 {[%clk 0:03:01]} 6. Bg5 {[%clk 0:02:57]}  Nbd7 {[%clk 0:03:01]} 7. f4 {[%clk 0:02:56]}  Qc7 {[%clk 0:03:02]} 8. Qf3 {[%clk 0:02:56]}  h6 {[%clk 0:03:02]} 9. Bxf6 {[%clk 0:02:55]}  Nxf6 {[%clk 0:03:02]} 10. O-O-O {[%clk 0:02:54]}  Bg4 {[%clk 0:03:00]} 0-1


[Site "https://www.chess.com"]

[Event "Titled Tuesday Blitz February 21 Late 2023"]
[White "Tarnowska, Aleksandra"]
[Black "Kielinkei"]
[WhiteFideId "1180967"]
[WhiteElo "1835"]
[BlackElo "2387"]
[Result "0-1"]
[Round "03"]
[TimeControl "180+2"]
[Date "2023.02.21"]
[WhiteClock "0:00:01"]
[BlackClock "0:00:05"]

1. e4 {[%clk 0:03:00]}  Nf6 {[%clk 0:02:56]} 2. e5 {[%clk 0:02:59]}  Nd5 {[%clk 0:02:57]} 3. Bc4 {[%clk 0:02:59]}  Nb6 {[%clk 0:02:55]} 4. Bb3 {[%clk 0:02:58]}  d5 {[%clk 0:02:53]} 5. f4 {[%clk 0:02:41]}  c5 {[%clk 0:02:51]} 6. c3 {[%clk 0:02:41]}  c4 {[%clk 0:02:39]} 7. Bc2 {[%clk 0:02:38]}  Nc6 {[%clk 0:02:40]} 8. Nf3 {[%clk 0:02:36]}  Bg4 {[%clk 0:02:34]} 9. O-O {[%clk 0:02:35]}  d4 {[%clk 0:02:28]} 10. d3 {[%clk 0:02:27]}  cxd3 {[%clk 0:02:17]} 11. Bxd3 {[%clk 0:02:09]}  e6 {[%clk 0:02:08]} 12. h3 {[%clk 0:02:03]}  Bxf3 {[%clk 0:02:06]} 13. Qxf3 {[%clk 0:02:04]}  Bc5 {[%clk 0:02:04]} 14. Kh1 {[%clk 0:01:49]}  O-O {[%clk 0:01:55]} 15. Nd2 {[%clk 0:01:45]}  dxc3 {[%clk 0:01:53]} 16. bxc3 {[%clk 0:01:45]}  Nd5 {[%clk 0:01:48]} 17. Ne4 {[%clk 0:01:43]}  Be7 {[%clk 0:01:45]} 18. Qh5 {[%clk 0:01:34]}  g6 {[%clk 0:01:43]} 19. Qf3 {[%clk 0:01:07]}  Rc8 {[%clk 0:01:27]} 20. Bb2 {[%clk 0:01:06]}  Na5 {[%clk 0:01:22]} 21. Rad1 {[%clk 0:01:04]}  Qb6 {[%clk 0:01:18]} 22. Ba1 {[%clk 0:00:57]}  Nc4 {[%clk 0:01:17]} 23. Rde1 {[%clk 0:00:29]}  Qa5 {[%clk 0:01:07]} 24. g4 {[%clk 0:00:24]}  Qxa2 {[%clk 0:00:58]} 25. f5 {[%clk 0:00:22]}  Nxe5 {[%clk 0:00:56]} 26. Qg3 {[%clk 0:00:20]}  Nxd3 {[%clk 0:00:49]} 27. Qxd3 {[%clk 0:00:21]}  exf5 {[%clk 0:00:38]} 28. gxf5 {[%clk 0:00:22]}  Qc4 {[%clk 0:00:37]} 29. Qg3 {[%clk 0:00:20]}  Nf6 {[%clk 0:00:31]} 30. Ng5 {[%clk 0:00:17]}  Qc6+ {[%clk 0:00:27]} 31. Rf3 {[%clk 0:00:15]}  Bd6 {[%clk 0:00:24]} 32. Qh4 {[%clk 0:00:13]}  Rfe8 {[%clk 0:00:19]} 33. Rf1 {[%clk 0:00:13]}  Be5 {[%clk 0:00:13]} 34. fxg6 {[%clk 0:00:10]}  fxg6 {[%clk 0:00:13]} 35. Qh6 {[%clk 0:00:09]}  Rc7 {[%clk 0:00:12]} 36. Qh4 {[%clk 0:00:04]}  Rf8 {[%clk 0:00:12]} 37. c4 {[%clk 0:00:03]}  Bxa1 {[%clk 0:00:11]} 38. Rxa1 {[%clk 0:00:04]}  Re7 {[%clk 0:00:06]} 39. Rf1 {[%clk 0:00:04]}  Qd6 {[%clk 0:00:02]} 40. Kg1 {[%clk 0:00:04]}  Qc6 {[%clk 0:00:03]} 41. Rf4 {[%clk 0:00:04]}  Qb6+ {[%clk 0:00:03]} 42. Kh1 {[%clk 0:00:04]}  Qd6 {[%clk 0:00:04]} 43. R4f3 {[%clk 0:00:04]}  a5 {[%clk 0:00:04]} 44. c5 {[%clk 0:00:04]}  Qc6 {[%clk 0:00:04]} 45. Kh2 {[%clk 0:00:03]}  Qc7+ {[%clk 0:00:04]} 46. Kh1 {[%clk 0:00:03]}  Qc6 {[%clk 0:00:05]} 47. Qc4+ {[%clk 0:00:03]}  Kg7 {[%clk 0:00:05]} 48. Kh2 {[%clk 0:00:01]}  Qc7+ {[%clk 0:00:04]} 49. Kh1 {[%clk 0:00:02]}  Qc6 {[%clk 0:00:05]} 50. Kh2 {[%clk 0:00:01]}  a4 {[%clk 0:00:05]} 51. Qb4 {[%clk 0:00:01]}  Qc7+ {[%clk 0:00:06]} 52. Kh1 {[%clk 0:00:01]}  Qc6 {[%clk 0:00:06]} 53. Qc4 {[%clk 0:00:01]}  Qc7 {[%clk 0:00:06]} 54. h4 {[%clk 0:00:02]}  a3 {[%clk 0:00:05]} 55. Kg1 {[%clk 0:00:03]}  Qd7 {[%clk 0:00:05]} 56. h5 {[%clk 0:00:03]}  gxh5 {[%clk 0:00:04]} 57. Qh4 {[%clk 0:00:02]}  Kh8 {[%clk 0:00:04]} 58. Rf5 {[%clk 0:00:02]}  Re2 {[%clk 0:00:03]} 59. Qc4 {[%clk 0:00:03]}  Qg7 {[%clk 0:00:03]} 60. Qc3 {[%clk 0:00:02]}  Ree8 {[%clk 0:00:02]} 61. Kh1 {[%clk 0:00:03]}  Nd7 {[%clk 0:00:03]} 62. Qxa3 {[%clk 0:00:02]}  Re2 {[%clk 0:00:02]} 63. Qg3 {[%clk 0:00:02]}  Rxf5 {[%clk 0:00:02]} 64. Rxf5 {[%clk 0:00:03]}  Qa1+ {[%clk 0:00:03]} 65. Qg1 {[%clk 0:00:01]}  Re1 {[%clk 0:00:03]} 66. Rf8+ {[%clk 0:00:01]}  Kg7 {[%clk 0:00:04]} 67. Ne6+ {[%clk 0:00:01]}  Kh6 {[%clk 0:00:04]} 68. Rf6+ {[%clk 0:00:01]}  Nxf6 {[%clk 0:00:04]} 69. Nf4 {[%clk 0:00:01]}  Rxg1+ {[%clk 0:00:05]} 0-1


[Site "https://www.chess.com"]

[Event "Titled Tuesday Blitz February 21 Late 2023"]
[White "Adel, Sara"]
[Black "Carrasco Miranda, Andres"]
[WhiteFideId "10616764"]
[BlackFideId "3405990"]
[WhiteElo "1739"]
[BlackElo "2240"]
[Result "1-0"]
[Round "03"]
[TimeControl "180+2"]
[Date "2023.02.21"]
[WhiteClock "0:01:10"]
[BlackClock "0:01:46"]

1. e4 {[%clk 0:02:58]}  c5 {[%clk 0:02:59]} 2. Nf3 {[%clk 0:02:58]}  d6 {[%clk 0:02:59]} 3. d4 {[%clk 0:02:59]}  cxd4 {[%clk 0:03:00]} 4. Nxd4 {[%clk 0:02:59]}  Nf6 {[%clk 0:03:00]} 5. Nc3 {[%clk 0:02:59]}  a6 {[%clk 0:03:01]} 6. f3 {[%clk 0:02:57]}  e5 {[%clk 0:03:01]} 7. Nb3 {[%clk 0:02:57]}  Be7 {[%clk 0:03:01]} 8. Be3 {[%clk 0:02:57]}  Be6 {[%clk 0:03:02]} 9. Qd2 {[%clk 0:02:56]}  h5 {[%clk 0:03:02]} 10. h3 {[%clk 0:02:54]}  Nbd7 {[%clk 0:02:59]} 11. O-O-O {[%clk 0:02:49]}  Rc8 {[%clk 0:02:59]} 12. Bd3 {[%clk 0:02:48]}  h4 {[%clk 0:02:57]} 13. f4 {[%clk 0:02:29]}  exf4 {[%clk 0:02:57]} 14. Bxf4 {[%clk 0:02:27]}  Ne5 {[%clk 0:02:58]} 15. Nd4 {[%clk 0:02:19]}  b5 {[%clk 0:02:49]} 16. Nxe6 {[%clk 0:02:16]}  fxe6 {[%clk 0:02:50]} 17. Bxe5 {[%clk 0:02:08]}  dxe5 {[%clk 0:02:51]} 18. Qg5 {[%clk 0:02:09]}  b4 {[%clk 0:02:31]} 19. Bb5+ {[%clk 0:01:48]}  axb5 {[%clk 0:02:26]} 20. Rxd8+ {[%clk 0:01:47]}  Rxd8 {[%clk 0:02:21]} 21. Nxb5 {[%clk 0:01:47]}  O-O {[%clk 0:02:17]} 22. Qxe5 {[%clk 0:01:42]}  Rf7 {[%clk 0:02:08]} 23. Qxe6 {[%clk 0:01:39]}  Nh5 {[%clk 0:01:54]} 24. Rf1 {[%clk 0:01:34]}  Nf4 {[%clk 0:01:52]} 25. Rxf4 {[%clk 0:01:29]}  Bg5 {[%clk 0:01:49]} 26. Qxf7+ {[%clk 0:01:29]}  Kh7 {[%clk 0:01:49]} 27. Qh5+ {[%clk 0:01:17]}  Bh6 {[%clk 0:01:48]} 28. Qf5+ {[%clk 0:01:12]}  Kh8 {[%clk 0:01:47]} 29. c3 {[%clk 0:01:10]}  g6 {[%clk 0:01:46]} 1-0


[Site "https://www.chess.com"]

[Event "Titled Tuesday Blitz February 21 Late 2023"]
[White "Nunez V, Gustavo Eduardo"]
[Black "Levine, David"]
[WhiteFideId "4403690"]
[BlackFideId "2011611"]
[WhiteElo "2212"]
[BlackElo "2040"]
[Result "1-0"]
[Round "03"]
[TimeControl "180+2"]
[Date "2023.02.21"]
[WhiteClock "0:01:30"]
[BlackClock "0:00:03"]

1. e4 {[%clk 0:03:00]}  e5 {[%clk 0:02:52]} 2. Nc3 {[%clk 0:03:00]}  Nf6 {[%clk 0:02:52]} 3. g3 {[%clk 0:03:01]}  Bc5 {[%clk 0:02:48]} 4. Bg2 {[%clk 0:03:00]}  d6 {[%clk 0:02:46]} 5. h3 {[%clk 0:02:58]}  Nc6 {[%clk 0:02:45]} 6. Nge2 {[%clk 0:02:58]}  a6 {[%clk 0:02:44]} 7. O-O {[%clk 0:02:59]}  O-O {[%clk 0:02:39]} 8. Kh2 {[%clk 0:02:59]}  Re8 {[%clk 0:02:26]} 9. d3 {[%clk 0:02:58]}  h6 {[%clk 0:02:19]} 10. Be3 {[%clk 0:02:56]}  Nd4 {[%clk 0:02:08]} 11. Qd2 {[%clk 0:02:47]}  c6 {[%clk 0:02:02]} 12. g4 {[%clk 0:02:32]}  Nxe2 {[%clk 0:01:57]} 13. Nxe2 {[%clk 0:02:30]}  Bxe3 {[%clk 0:01:52]} 14. fxe3 {[%clk 0:02:31]}  d5 {[%clk 0:01:49]} 15. exd5 {[%clk 0:02:31]}  Nxd5 {[%clk 0:01:48]} 16. Ng3 {[%clk 0:02:30]}  Be6 {[%clk 0:01:43]} 17. Rae1 {[%clk 0:02:18]}  Qb6 {[%clk 0:01:34]} 18. b3 {[%clk 0:02:17]}  Rad8 {[%clk 0:01:31]} 19. Be4 {[%clk 0:02:15]}  Qb4 {[%clk 0:01:23]} 20. Qf2 {[%clk 0:01:55]}  Nc3 {[%clk 0:00:59]} 21. a4 {[%clk 0:01:54]}  Nxe4 {[%clk 0:00:57]} 22. Nxe4 {[%clk 0:01:55]}  Rd7 {[%clk 0:00:45]} 23. Re2 {[%clk 0:01:54]}  Bd5 {[%clk 0:00:41]} 24. Ng3 {[%clk 0:01:51]}  Be6 {[%clk 0:00:40]} 25. Nf5 {[%clk 0:01:48]}  Bxf5 {[%clk 0:00:36]} 26. Qxf5 {[%clk 0:01:49]}  Rde7 {[%clk 0:00:30]} 27. e4 {[%clk 0:01:49]}  Qd4 {[%clk 0:00:27]} 28. Ref2 {[%clk 0:01:46]}  Qd7 {[%clk 0:00:25]} 29. Qh5 {[%clk 0:01:43]}  Rf8 {[%clk 0:00:12]} 30. h4 {[%clk 0:01:31]}  Qe6 {[%clk 0:00:03]} 31. g5 {[%clk 0:01:30]}  hxg5 {[%clk 0:00:03]} 32. Rg1 {[%clk 0:01:30]} 1-0


[Site "https://www.chess.com"]